Cogmind - Beta 13 @@@ ROGUE MODE // 2024.04.02 @ 02:40:24 Player: Bulbasornado Result: Destroyed by G-73 Enforcer with Phase Gun Performance ------------- Evolutions (7) 3500 Regions Visited (13) 2600 Robots Destroyed (121) 605 Value Destroyed (2661) 2661 Prototype IDs (39) 780 Alien Tech Used (0) 0 Bonus (739) 739 TOTAL SCORE: 10885 Bonus ------- High Alert Combat Kills 242 Follower Combat Kills 197 Aligned with FarCom 300 Cogmind --------- Core Integrity 0/1300 Matter 44/300 Energy 34/100 System Corruption 3% Temperature Warm (137) Movement Core (50) Location -3/Armory Parts ------- > --- POWER (3) -------- (None) > --- PROPULSION (6) --- (None) > --- UTILITY (10) ----- (None) > --- WEAPON (2) ------- (None) > --- INVENTORY (5) ---- Light Antimatter Reactor Impulse Thruster Impulse Thruster Array Peak State ------------ > --- POWER ------------ Micro Nuclear Core Micro Nuclear Core Light Antimatter Reactor > --- PROPULSION ------- Improved Cesium-ion Thruster Improved Cesium-ion Thruster Improved Cesium-ion Thruster Field Propulsion Drive Field Propulsion Array > --- UTILITY ---------- Small Storage Unit Gravity Neutralizer Improved Trap Scanner Advanced Signal Interpreter Advanced Targeting Computer Improved Cloaking Device Improved Medium Armor Plating Improved Focal Shield Hacking Suite System Shield > --- WEAPON ----------- Mini Smartbomb Launcher Advanced Datajack > --- INVENTORY -------- Cooled Nuclear Pulse Thruster Impulse Thruster Impulse Thruster Array Structural Scanner Improved Shield Generator Advanced System Restoration Module [Rating: 111] Favorites ----------- Power Micro Nuclear Core Engine Light Ion Engine Power Core Micro Nuclear Core Reactor Light Antimatter Reactor Propulsion Wheel Wheel Wheel Hover Unit Improved Hover Unit Flight Unit Improved Cesium-ion Thruster Utility High-capacity Storage Unit Device Structural Scanner Storage High-capacity Storage Unit Processor Advanced Targeting Computer Hackware Hacking Suite Protection Improved Light Armor Plating Weapon Light Cannon Energy Gun Medium Laser Energy Cannon Ion Cannon Ballistic Gun Battle Rifle Ballistic Cannon Light Cannon Launcher Mini Smartbomb Launcher Special Melee Weapon Advanced Datajack Build | -11 -10 -10 -10 -9 -8 -7 -6 -5 -4 -4 -4 -3 -3 ------- Run | Yrd Mat Min Exi Min Mat Fac Fac Fac Fac Ext Cet Res Arm Slots Evolved 14 | . . . . . 4 2 2 2 2 . . 2 . Power 2 | . . . . . . . 1 . . . . 1 . Propulsion 4 | . . . . . 1 1 1 1 . . . . . Utility 8 | . . . . . 3 1 . 1 2 . . 1 . Weapon . | . . . . . . . . . . . . . . Parts Attached 193 | 9 30 14 2 1 37 54 10 2 4 11 . 18 1 Power 12 | 1 2 1 . . 1 2 2 . . . . 3 . Engine 5 | 1 2 . . . . 2 . . . . . . . Core 5 | . . 1 . . 1 . 2 . . . . 1 . Reactor 2 | . . . . . . . . . . . . 2 . Propulsion 53 | 2 6 3 . 1 9 24 1 1 1 1 . 4 . Treads . | . . . . . . . . . . . . . . Leg . | . . . . . . . . . . . . . . Wheel 29 | 2 6 3 . 1 9 8 . . . . . . . Hover 4 | . . . . . . 4 . . . . . . . Flight 20 | . . . . . . 12 1 1 1 1 . 4 . Utility 63 | 4 4 4 2 . 11 12 5 1 2 7 . 10 1 Device 31 | 3 . 1 . . 3 3 5 1 2 5 . 7 1 Storage 8 | 1 3 1 . . 1 1 . . . 1 . . . Processor 7 | . 1 . 1 . 3 1 . . . . . 1 . Hackware 3 | . . . . . 2 1 . . . . . . . Protection 14 | . . 2 1 . 2 6 . . . 1 . 2 . Artifact . | . . . . . . . . . . . . . . Weapon 65 | 2 18 6 . . 16 16 2 . 1 3 . 1 . Energy Gun 20 | 2 9 . . . 3 5 . . . 1 . . . Energy Cannon 7 | . . 1 . . . 6 . . . . . . . Ballistic Gun 1 | . . . . . . . . . . 1 . . . Ballistic Cannon 12 | . 3 3 . . 6 . . . . . . . . Launcher 21 | . 4 2 . . 7 4 2 . 1 . . 1 . Special Weapon . | . . . . . . . . . . . . . . Impact Weapon . | . . . . . . . . . . . . . . Slashing Weapon . | . . . . . . . . . . . . . . Piercing Weapon . | . . . . . . . . . . . . . . Special Melee Weapon 4 | . 2 . . . . 1 . . . 1 . . . Unidentified Prototypes 8 | . . . . . . 5 . . . . . 3 . Parts Lost 29 | . 2 . . . . 8 . . 5 6 . 6 2 Power 2 | . . . . . . 1 . . . . . 1 . Propulsion 12 | . 2 . . . . 3 . . 2 1 . 4 . Utility 10 | . . . . . . 2 . . 2 3 . 1 2 Weapon 5 | . . . . . . 2 . . 1 2 . . . Highest Loss Streak 5 | . 2 . . . . 4 . . 5 4 . 2 1 To Critical Strikes . | . . . . . . . . . . . . . . Average Slot Usage (%) 95 | . 99 100 100 100 99 97 95 92 81 84 89 91 16 Engine 3 | . 14 4 . . . 5 . . . . . . . Core 7 | . . 9 14 14 9 1 12 11 10 10 10 11 . Wheel 20 | . 27 28 28 28 27 19 . . . . . . . Flight 7 | . . . . . . 9 33 35 27 26 26 22 1 Device 5 | . . . . . 5 5 10 15 16 19 15 18 3 Storage 11 | . 26 18 14 14 9 5 . . . 1 5 4 1 Processor 5 | . 1 . . . 10 9 13 11 10 10 10 12 3 Hackware 5 | . . . . . 4 14 13 11 10 10 10 9 2 Protection 7 | . . 9 14 14 15 8 1 . . . 5 1 . Energy Gun 3 | . 14 . . . 1 6 6 5 2 . . . . Energy Cannon 5 | . . 9 14 14 6 6 . . . . . . . Ballistic Cannon 7 | . 11 17 14 14 5 . . . . . . . . Launcher 1 | . 2 . . . 3 . 1 . 2 2 . 3 . Naked Turns 54 | . . . . . . . . . . . . . 54 Heaviest Build 76 | 11 36 59 59 59 72 76 45 23 31 34 32 47 20 Greatest Support 52 | 20 20 20 20 20 30 42 27 27 37 38 38 52 24 Greatest Overweight (x) 7 | . 3 2 2 2 2 7 1 . . . . 1 1 Average Overweight (x) . | . . 1 2 2 1 . . . . . . . . Largest Inventory Capacity 20 | 8 15 20 20 20 20 20 15 5 5 8 8 8 8 Average Capacity 14 | 7 14 17 20 20 20 15 5 5 5 5 8 8 5 Most Carried 20 | 8 15 20 20 20 20 20 8 5 5 8 8 8 8 Average Carried 14 | 7 14 16 19 19 19 13 4 4 4 5 8 7 5 Final Capacity 20 | 8 15 20 20 20 20 15 5 5 5 8 8 8 5 Final Carried 20 | 8 15 20 19 20 20 9 5 5 5 8 8 8 4 Class Distribution -------------------- 49% | Mutant 14% | Scavenger-Mutant 12% | Hacker-Mutant 11% | Hacker-Scout 8% | Hacker-Sprinter Dominant Class ---------------- Mutant | -10/Materials Mutant | -10/Mines Mutant | -10/Exiles Mutant | -9/Mines Scavenger-Mutant | -8/Materials Hacker-Mutant | -7/Factory Hacker-Sprinter | -6/Factory Hacker-Scout | -5/Factory Hacker-Scout | -4/Factory Hacker-Scout | -4/Extension Hacker-Scout | -4/Cetus Hacker-Scout | -3/Research Mutant | -3/Armory Resources | -11 -10 -10 -10 -9 -8 -7 -6 -5 -4 -4 -4 -3 -3 ----------- Run | Yrd Mat Min Exi Min Mat Fac Fac Fac Fac Ext Cet Res Arm Matter Collected 3291 | 290 388 550 . 70 743 591 219 . 10 275 . 115 40 Remotely . | . . . . . . . . . . . . . . Salvage Created 3195 | 287 381 299 . 49 1013 569 161 . 195 174 . 67 . Parts 217 | 25 27 32 . . 68 33 9 . 3 11 . 9 . Haulers Intercepted 8 | . 2 . . . 3 . 1 . 2 . . . . Recyclers Shooed 3 | 1 . . . . . 2 . . . . . . . Parts Field Recycled . | . . . . . . . . . . . . . . Retrieved Matter . | . . . . . . . . . . . . . . Parts Self-Destructed . | . . . . . . . . . . . . . . Prevented . | . . . . . . . . . . . . . . Kills | -11 -10 -10 -10 -9 -8 -7 -6 -5 -4 -4 -4 -3 -3 ------- Run | Yrd Mat Min Exi Min Mat Fac Fac Fac Fac Ext Cet Res Arm Combat Hostiles Destroyed 57 | . 10 4 . 3 24 7 3 . . . . 6 . Guns 5 | . 1 . . . 1 3 . . . . . . . Cannons 14 | . 2 2 . 2 7 1 . . . . . . . AOE 36 | . 6 2 . . 16 3 3 . . . . 6 . Classes Destroyed 15 | 3 5 1 . 1 2 2 . . . . . 1 . Worker 18 | 2 2 1 . . 5 8 . . . . . . . Builder 12 | . 2 4 . . 5 . . . . 1 . . . Tunneler 12 | 9 . 2 . . . 1 . . . . . . . Hauler 8 | . 2 . . . 3 . 1 . 2 . . . . Recycler 7 | 1 . 1 . . 3 1 . . . 1 . . . Mechanic 3 | . . 1 . . . 1 . . . 1 . . . Operator 1 | . . . . . 1 . . . . . . . . Watcher 5 | . 2 . . . 2 . 1 . . . . . . Swarmer 18 | . 3 . . . 7 1 3 . . . . 4 . Cutter 2 | . . . . . . . . . . . . 2 . Grunt 29 | . 7 4 . 1 13 4 . . . . . . . Sentry 4 | . . . . . 4 . . . . . . . . Hunter 1 | . . . . . . 1 . . . . . . . Programmer 1 | . . . . . . 1 . . . . . . . Assembled 2 | . . . . 2 . . . . . . . . . Best Kill Streak 15 | 4 7 4 . 2 15 4 3 . 1 2 . 4 . Combat Bots Only 6 | . 4 3 . 2 6 3 3 . . . . 4 . Max Kills in Single Turn 3 | 1 3 2 . 1 2 1 2 . 1 1 . 2 . Gunslinging . | . . . . . . . . . . . . . . Exploded 2 | . 2 1 . . 2 1 2 . . . . 2 . Melee . | . . . . . . . . . . . . . . Uniques/NPCs Destroyed . | . . . . . . . . . . . . . . Combat | -11 -10 -10 -10 -9 -8 -7 -6 -5 -4 -4 -4 -3 -3 -------- Run | Yrd Mat Min Exi Min Mat Fac Fac Fac Fac Ext Cet Res Arm Hostile Shots Fired 403 | . 35 22 . 6 58 88 4 . 5 44 . 33 108 Missed 155 | . 9 9 . 3 27 26 1 . 4 20 . 11 45 Damage Taken 5450 | . 412 298 . 50 546 1020 147 . 473 606 . 543 1355 Core 1883 | . 125 75 . . 119 108 . . 115 28 . 139 1174 Absorbed by Shields 52 | . . . . . . . . . . 35 . . 17 Redirected to Shielding 89 | . . . . . 20 69 . . . . . . . Ignored by Resistances 109 | . . . . . . . . . . . . 109 . Regen/Repaired (Parts) 134 | . . . . . . 75 . . . . . 59 . Core Remaining (%) 81 | 100 . . . 20 78 84 100 100 . . 87 . . Volleys Fired 287 | 38 46 27 . 9 63 56 9 . 9 21 . 9 . Largest 2 | 2 2 2 . 2 2 2 2 . 1 1 . 1 . Hottest 138 | 80 100 95 . 95 138 138 94 . 55 39 . 80 . Shots Fired 447 | 76 83 50 . 18 96 74 11 . 9 21 . 9 . Gun 197 | 76 37 . . . 10 48 8 . 7 11 . . . Cannon 173 | . 34 45 . 18 55 21 . . . . . . . Launcher 77 | . 12 5 . . 31 5 3 . 2 10 . 9 . Special . | . . . . . . . . . . . . . . Kinetic 111 | . 34 34 . 9 23 . . . . 11 . . . Thermal 206 | 76 37 11 . 9 42 31 . . . . . . . Explosive 77 | . 12 5 . . 31 5 3 . 2 10 . 9 . Electromagnetic 53 | . . . . . . 38 8 . 7 . . . . Robot Hit Streak 16 | 5 6 4 . 4 16 14 8 . 13 10 . 4 . Robot Miss Streak 5 | 3 3 4 . 2 5 4 1 . 1 2 . . . Penetration Max . | . . . . . . . . . . . . . . Secondary Targets . | . . . . . . . . . . . . . . Shots Hit Robots 250 | 38 35 22 . 10 58 58 9 . 6 10 . 4 . Core Hits 183 | 13 25 15 . 3 69 26 7 . 4 7 . 14 . Critical Kills 1 | . . . . 1 . . . . . . . . . Critical Parts Destroyed 1 | . . . . . . . . . . 1 . . . Critical Strikes 6 | . . 1 . 1 . 1 2 . . 1 . . . Meltdown 1 | . . . . 1 . . . . . . . . . Destroy 1 | . . . . . . . . . . 1 . . . Blast 1 | . . 1 . . . . . . . . . . . Corrupt 3 | . . . . . . 1 2 . . . . . . Melee Attacks 2 | . 2 . . . . . . . . . . . . Impact . | . . . . . . . . . . . . . . Slashing . | . . . . . . . . . . . . . . Piercing . | . . . . . . . . . . . . . . Sneak Attacks . | . . . . . . . . . . . . . . Combat Hostiles . | . . . . . . . . . . . . . . Follow-up Attacks . | . . . . . . . . . . . . . . Damage Inflicted 8683 | 429 1035 805 . 229 2926 1495 429 . 366 319 . 650 . Guns 1797 | 429 211 . . . 132 631 153 . 126 115 . . . Cannons 2153 | . 260 414 . 229 772 478 . . . . . . . Explosions 4696 | . 564 354 . . 2022 386 276 . 240 204 . 650 . Melee . | . . . . . . . . . . . . . . Ramming 37 | . . 37 . . . . . . . . . . . Kinetic 1011 | . 260 346 . 90 200 . . . . 115 . . . Thermal 2196 | 429 211 68 . 139 704 405 . . 240 . . . . Explosive 4456 | . 564 354 . . 2022 386 276 . . 204 . 650 . Electromagnetic 983 | . . . . . . 704 153 . 126 . . . . Impact . | . . . . . . . . . . . . . . Slashing . | . . . . . . . . . . . . . . Piercing . | . . . . . . . . . . . . . . Highest Corruption 3 | . . . . . . 1 . . . 1 1 . 3 Average Corruption 1 | . . . . . . 1 . . . 1 1 . 2 Corruption Purged . | . . . . . . . . . . . . . . Corruption Blocked . | . . . . . . . . . . . . . . Effects 2 | . . . . . . . . . . . 1 . 1 Heat Flow Errors 2 | . . . . . . . . . . . 1 . 1 Overload Shots . | . . . . . . . . . . . . . . Overflow Damage 285 | . . 11 . 1 51 2 6 . 158 6 . 50 . Projectiles 33 | . . 11 . 1 21 . . . . . . . . Explosions 252 | . . . . . 30 2 6 . 158 6 . 50 . Melee . | . . . . . . . . . . . . . . Knockbacks 9 | . 1 8 . . . . . . . . . . . Impact . | . . . . . . . . . . . . . . Kinetic 8 | . 1 7 . . . . . . . . . . . Secondary 1 | . . 1 . . . . . . . . . . . Self-Inflicted Damage 947 | . 86 57 . . 67 97 . . 454 153 . 33 . Shots 25 | . 4 2 . . 2 4 . . 6 5 . 2 . Rammed 2 | . . 2 . . . . . . . . . . . Targets Rammed 2 | . . 2 . . . . . . . . . . . Kicked . | . . . . . . . . . . . . . . Crushed . | . . . . . . . . . . . . . . Highest Temperature 395 | 194 285 56 . 186 264 395 63 42 174 40 236 105 123 Average Temperature 54 | 59 84 22 . 66 61 112 20 23 78 13 96 18 112 Received Heat Transfer 1193 | . 168 99 . 27 252 270 12 . . 58 . 27 280 Effects 6 | . 3 . . . 2 1 . . . . . . . Shutdowns 1 | . . . . . . 1 . . . . . . . Interference 5 | . 3 . . . 2 . . . . . . . . Siege Activations . | . . . . . . . . . . . . . . Robots Corrupted . | . . . . . . . . . . . . . . Combat Hostiles . | . . . . . . . . . . . . . . Parts Fried 6 | . . . . . . 6 . . . . . . . Impact Corruptions . | . . . . . . . . . . . . . . Robots Melted 2 | . 1 . . 1 . . . . . . . . . Combat Hostiles 2 | . 1 . . 1 . . . . . . . . . Parts Melted 3 | . . . . 2 . . . . 1 . . . . Heat Transferred 4048 | 975 629 111 . 222 1184 777 . . 150 . . . . Parts Sabotaged 14 | . . . . . . . . . . . . 4 10 Parts Stolen . | . . . . . . . . . . . . . . Parts Stripped . | . . . . . . . . . . . . . . Power Chain Reactions 1 | . . . . . . . . . 1 . . . . Alert | -11 -10 -10 -10 -9 -8 -7 -6 -5 -4 -4 -4 -3 -3 ------- Run | Yrd Mat Min Exi Min Mat Fac Fac Fac Fac Ext Cet Res Arm Peak Influence 802 | 60 356 276 . 118 802 527 365 126 369 607 328 649 388 Initial 341 | . 39 53 . . 29 341 159 114 61 180 328 196 233 Average 278 | 27 178 172 . 89 413 388 250 124 183 346 328 436 288 Maximum Alert Level 3 | . 1 1 . . 3 2 1 . 1 2 1 2 1 Low Security (%) 36 | 100 68 57 . 100 19 . 20 100 52 2 . 2 . Level 1 44 | . 31 42 . . 35 69 79 . 47 66 100 36 100 Level 2 17 | . . . . . 31 30 . . . 30 . 61 . Level 3 2 | . . . . . 13 . . . . . . . . Level 4 . | . . . . . . . . . . . . . . Level 5 . | . . . . . . . . . . . . . . High Security . | . . . . . . . . . . . . . . Max Security . | . . . . . . . . . . . . . . Squads Dispatched 18 | . 1 1 . . 5 3 . . 1 . . 5 2 Investigation 2 | . . . . . . 1 . . . . . . 1 Extermination 1 | . . . . . . 1 . . . . . . . Reinforcement 13 | . 1 . . . 5 1 . . 1 . . 4 1 Assault 2 | . . 1 . . . . . . . . . 1 . Garrison . | . . . . . . . . . . . . . . Intercept . | . . . . . . . . . . . . . . Searches Triggered . | . . . . . . . . . . . . . . Construction Impeded 4 | . . . . . 2 1 . . . . . 1 . Haulers Reinforced 1 | . . . . . . . . . 1 . . . . Active Scanning Responses . | . . . . . . . . . . . . . . Cargo Convoy Interrupts . | . . . . . . . . . . . . . . Stealth | -11 -10 -10 -10 -9 -8 -7 -6 -5 -4 -4 -4 -3 -3 --------- Run | Yrd Mat Min Exi Min Mat Fac Fac Fac Fac Ext Cet Res Arm Distress Signals 11 | . 1 . . . 2 . . . . 2 1 2 3 Communications Jammed . | . . . . . . . . . . . . . . Distress Signals . | . . . . . . . . . . . . . . Times Spotted 172 | . 15 8 . 6 30 14 7 . 2 23 4 26 37 Peak Tracking Total 23 | . 4 4 . 3 4 4 4 . 3 15 5 9 23 Tactical Retreats 17 | . . . . . . 5 1 . 1 4 . 3 3 Traps | -11 -10 -10 -10 -9 -8 -7 -6 -5 -4 -4 -4 -3 -3 ------- Run | Yrd Mat Min Exi Min Mat Fac Fac Fac Fac Ext Cet Res Arm Traps Triggered 10 | . 1 2 . . . 1 2 . . 1 . 1 2 Indirectly . | . . . . . . . . . . . . . . Trap Hack Attempts . | . . . . . . . . . . . . . . Triggered . | . . . . . . . . . . . . . . Disarmed . | . . . . . . . . . . . . . . Reprogrammed . | . . . . . . . . . . . . . . Reused . | . . . . . . . . . . . . . . Traps Extracted . | . . . . . . . . . . . . . . Installed . | . . . . . . . . . . . . . . Triggered . | . . . . . . . . . . . . . . Machines | -11 -10 -10 -10 -9 -8 -7 -6 -5 -4 -4 -4 -3 -3 ---------- Run | Yrd Mat Min Exi Min Mat Fac Fac Fac Fac Ext Cet Res Arm Machines Disabled 24 | . 3 1 . . 3 1 2 . 13 1 . . . Max in Single Turn 12 | . 2 1 . . 1 1 1 . 12 . . . . Machines Repaired . | . . . . . . . . . . . . . . Machines Dismantled . | . . . . . . . . . . . . . . Machines Sabotaged . | . . . . . . . . . . . . . . Overloaded Fab Kills . | . . . . . . . . . . . . . . Hacking | -11 -10 -10 -10 -9 -8 -7 -6 -5 -4 -4 -4 -3 -3 --------- Run | Yrd Mat Min Exi Min Mat Fac Fac Fac Fac Ext Cet Res Arm Machines Accessed 52 | . 8 1 2 1 4 5 10 2 1 9 . 8 1 Terminals 39 | . 6 . . 1 4 3 7 1 1 9 . 6 1 Fabricators . | . . . . . . . . . . . . . . Repair Stations 3 | . . . . . . 1 1 . . . . 1 . Recycling Units 7 | . 2 . . . . 1 2 1 . . . 1 . Scanalyzers . | . . . . . . . . . . . . . . Garrison Access . | . . . . . . . . . . . . . . Total Hacks 129 | . 16 1 2 2 18 15 19 6 1 21 . 24 4 Successful 64 | . 11 1 2 . 5 9 8 5 1 8 . 12 2 Failed 65 | . 5 . . 2 13 6 11 1 . 13 . 12 2 Catastrophic 8 | . 1 . . . 2 . . 1 . 3 . . 1 Database Lockouts . | . . . . . . . . . . . . . . Manual 1 | . . . 1 . . . . . . . . . . Terminals 103 | . 13 . . 2 18 9 15 2 1 21 . 18 4 Fabricators . | . . . . . . . . . . . . . . Repair Stations 10 | . . . . . . 4 1 . . . . 5 . Recycling Units 13 | . 3 . . . . 2 3 4 . . . 1 . Scanalyzers . | . . . . . . . . . . . . . . Garrison Access . | . . . . . . . . . . . . . . Terminal Hacks 47 | . 9 1 2 . 5 4 5 1 1 8 . 9 2 Record 9 | . . . 1 . 1 . . . . 2 . 4 1 Prototype ID Bank 3 | . . . . . . 1 . . . 1 . 1 . Open Door 4 | . . 1 . . . . . . . 3 . . . Open DSF 4 | . . . . . . . 2 . 1 . . 1 . Emergency Access Points 2 | . 2 . . . . . . . . . . . . Recycling Unit Index 1 | . 1 . . . . . . . . . . . . Scanalyzer Index 1 | . 1 . . . . . . . . . . . . Alert Level 4 | . 1 . . . 1 . . . . . . 1 1 Unreport Threat 1 | . . . . . . . 1 . . . . . . Locate Traps 11 | . 3 . . . . 2 2 . . 2 . 2 . Transport Status 1 | . . . . . 1 . . . . . . . . Hauler Manifests 3 | . 1 . . . 1 1 . . . . . . . Registered Prototypes 1 | . . . . . 1 . . . . . . . . Zone Layout 1 | . . . . . . . . 1 . . . . . Derelict Proto ID Bank 1 | . . . 1 . . . . . . . . . . Fabricator Hacks . | . . . . . . . . . . . . . . Repair Station Hacks 6 | . . . . . . 4 . . . . . 2 . Scan Component 3 | . . . . . . 2 . . . . . 1 . Repair 3 | . . . . . . 2 . . . . . 1 . Recycling Unit Hacks 11 | . 2 . . . . 1 3 4 . . . 1 . Process 1 | . . . . . . . . 1 . . . . . Report Inventory 5 | . 1 . . . . . 1 2 . . . 1 . Retrieve Matter 2 | . 1 . . . . . . 1 . . . . . Retrieve Components 3 | . . . . . . 1 2 . . . . . . Scanalyzer . | . . . . . . . . . . . . . . Garrison Access Hacks . | . . . . . . . . . . . . . . Unauthorized Hacks . | . . . . . . . . . . . . . . Terminals . | . . . . . . . . . . . . . . Fabricators . | . . . . . . . . . . . . . . Repair Stations . | . . . . . . . . . . . . . . Recycling Units . | . . . . . . . . . . . . . . Scanalyzers . | . . . . . . . . . . . . . . Garrison Access . | . . . . . . . . . . . . . . Data Cores Recovered . | . . . . . . . . . . . . . . Used . | . . . . . . . . . . . . . . Hacking Detections 34 | . 6 . . 1 4 4 5 1 . 7 . 5 1 Full Trace Events 2 | . . . . . . 1 . . . . . . 1 Feedback Events 1 | . . . . . . . . . . . . . 1 Corruption 1 | . . . . . . . . . . . . . 1 Feedback Blocked 1 | . . . . . . 1 . . . . . . . Robot Schematics Acquired . | . . . . . . . . . . . . . . Robots Built . | . . . . . . . . . . . . . . Authchips . | . . . . . . . . . . . . . . Time . | . . . . . . . . . . . . . . Total Robot Build Rating . | . . . . . . . . . . . . . . Part Schematics Acquired . | . . . . . . . . . . . . . . Parts Built . | . . . . . . . . . . . . . . Authchips . | . . . . . . . . . . . . . . Time . | . . . . . . . . . . . . . . Total Part Build Rating . | . . . . . . . . . . . . . . Parts Repaired 3 | . . . . . . 2 . . . . . 1 . Time 111 | . . . . . . 76 . . . . . 35 . Parts Recycled . | . . . . . . . . . . . . . . Recycled Matter 39 | . . . . . . . . 39 . . . . . Retrieved Matter 39 | . . . . . . . . 39 . . . . . Retrieved Components 5 | . . . . . . 1 4 . . . . . . Parts Scanalyzed . | . . . . . . . . . . . . . . Part Schematics Acquired . | . . . . . . . . . . . . . . Parts Damaged . | . . . . . . . . . . . . . . Bothacking | -11 -10 -10 -10 -9 -8 -7 -6 -5 -4 -4 -4 -3 -3 ------------ Run | Yrd Mat Min Exi Min Mat Fac Fac Fac Fac Ext Cet Res Arm Used RIF Installer . | . . . . . . . . . . . . . . Robots Hacked 1 | . 1 . . . . . . . . . . . . Non-combat . | . . . . . . . . . . . . . . Combat 1 | . 1 . . . . . . . . . . . . Robot Hacks Applied 1 | . 1 . . . . . . . . . . . . parse_system 1 | . 1 . . . . . . . . . . . . Relay Couplers Released . | . . . . . . . . . . . . . . Fabnet Peak Effective % . | . . . . . . . . . . . . . . Robots Rewired . | . . . . . . . . . . . . . . Allies Hacked . | . . . . . . . . . . . . . . Hacks Repelled . | . . . . . . . . . . . . . . Allies | -11 -10 -10 -10 -9 -8 -7 -6 -5 -4 -4 -4 -3 -3 -------- Run | Yrd Mat Min Exi Min Mat Fac Fac Fac Fac Ext Cet Res Arm Total Allies 12 | . . 5 . . . . 3 . . 4 . . . Largest Group 5 | . . 5 5 4 . . 2 . . 2 . . . Highest-Rated Group 102 | . . 102 102 71 . . 59 . . 84 . . . Highest-Rated Ally 46 | . . 31 31 31 . . 31 . . 46 . . . Total Orders . | . . . . . . . . . . . . . . Ally Attacks 63 | . . 16 . 33 . . 1 . . 13 . . . Total Damage 973 | . . 149 . 404 . . 21 . . 399 . . . Kills 11 | . . 3 . 5 . . 1 . . 2 . . . Allies Corrupted . | . . . . . . . . . . . . . . Allies Melted . | . . . . . . . . . . . . . . Intel | -11 -10 -10 -10 -9 -8 -7 -6 -5 -4 -4 -4 -3 -3 ------- Run | Yrd Mat Min Exi Min Mat Fac Fac Fac Fac Ext Cet Res Arm Robot Analysis Total . | . . . . . . . . . . . . . . Derelict Logs Recovered 3 | . . 2 . 1 . . . . . . . . . Drone Launches . | . . . . . . . . . . . . . . Drone Recoveries . | . . . . . . . . . . . . . . Exploration | -11 -10 -10 -10 -9 -8 -7 -6 -5 -4 -4 -4 -3 -3 ------------- Run | Yrd Mat Min Exi Min Mat Fac Fac Fac Fac Ext Cet Res Arm Turns Passed 5962 | 268 897 761 662 268 882 989 281 32 129 230 28 441 94 Spaces Moved 7258 | 135 735 621 280 189 612 1011 1010 121 421 607 54 1265 197 Core 179 | 19 . . . . . 16 . . . . . . 144 Treads . | . . . . . . . . . . . . . . Legs . | . . . . . . . . . . . . . . Wheels 3014 | 116 735 621 280 189 612 461 . . . . . . . Hover 7 | . . . . . . 7 . . . . . . . Flight 4058 | . . . . . . 527 1010 121 421 607 54 1265 53 Fastest Speed 20 | 50 80 95 110 110 95 26 23 23 20 24 24 23 32 Average Speed 57 | 75 94 102 110 110 104 61 23 23 22 24 24 24 46 Slowest Speed 185 | 80 125 110 110 110 110 185 97 23 27 27 24 97 100 Overloaded Moves . | . . . . . . . . . . . . . . Propulsion Burnouts . | . . . . . . . . . . . . . . Robots Hopped 20 | . . . . . . . 1 . . 14 . 5 . Cave-ins Triggered . | . . . . . . . . . . . . . . Exploration Rate (%) 41 | 5 100 98 64 50 48 16 28 2 12 77 23 36 23 Regions Visited 13 Branch Regions 6 Pre-discovered Areas 2 | . . 1 . 1 . . . . . . . . . Known Exits Taken 7 | . . . 1 . . 1 1 1 1 1 1 . . Unknown Exits Taken 6 | 1 1 1 . 1 1 . . . . . . 1 . Scrap Searched 1 | . . 1 . . . . . . . . . . . Spaces Dug 255 | . 35 18 . . 28 . 17 . 22 116 . 19 . Terrain Destroyed 742 | . 70 40 . . 276 24 30 . 56 174 . 72 . Melee . | . . . . . . . . . . . . . . Projectile 8 | . . 2 . . 6 . . . . . . . . AOE 734 | . 70 38 . . 270 24 30 . 56 174 . 72 . Terrain Rammed . | . . . . . . . . . . . . . . Walls Destroyed . | . . . . . . . . . . . . . . Machines Disabled . | . . . . . . . . . . . . . . Actions | -11 -10 -10 -10 -9 -8 -7 -6 -5 -4 -4 -4 -3 -3 --------- Run | Yrd Mat Min Exi Min Mat Fac Fac Fac Fac Ext Cet Res Arm Total 8613 | 234 852 694 634 230 752 1306 1046 123 446 653 68 1376 199 Wait 630 | 25 3 13 350 31 . 102 6 . 8 17 15 59 1 Move 7207 | 134 734 620 279 188 611 1010 1007 120 420 579 53 1255 197 Hop 18 | . . . . . . . 1 . . 13 . 4 . Pick Up 124 | 17 18 8 1 1 19 35 3 1 4 5 . 12 . Fast Attach 47 | 7 8 2 . . 3 12 1 1 1 6 . 6 . Attach 41 | . 2 . 1 . 4 13 4 1 3 3 . 9 1 Detach 4 | . . . . . . . 3 . . . . 1 . Swap 106 | 2 20 12 1 1 30 30 5 . . 2 . 3 . Drop 131 | 11 19 10 2 . 22 48 7 . 1 1 . 10 . Fire 287 | 38 46 27 . 9 63 56 9 . 9 21 . 9 . Melee 2 | . 2 . . . . . . . . . . . . Ram 2 | . . 2 . . . . . . . . . . . Kick . | . . . . . . . . . . . . . . Crush . | . . . . . . . . . . . . . . Escape Stasis 14 | . . . . . . . . . . 6 . 8 . Rewire . | . . . . . . . . . . . . . . Trap . | . . . . . . . . . . . . . . Miscellaneous . | . . . . . . . . . . . . . . Route ------- -11/Scrapyard -10/Materials (discovered 5 exits: *Mat x3 / *Min / *Sub) -10/Mines (discovered 3 exits: *Mat x2 / *Exi) -10/Exiles (discovered 2 exits: *Min x2) -9/Mines -8/Materials -7/Factory -6/Factory -5/Factory -4/Factory -4/Extension (discovered 2 exits: *Res / *Cet) -4/Cetus -3/Research -3/Armory History --------- Turn | Location | Event 5 | -11/Scrapyard | Discovered new exit (range 15) 269 | -11/Scrapyard | Entered Materials 361 | -10/Materials | Build established: Mutant 479 | -10/Materials | Discovered new exit (range 15) 598 | -10/Materials | Discovered new exit (range 16) 624 | -10/Materials | Discovered new exit (range 8) 633 | -10/Materials | Identified exit to Subcaves 663 | -10/Materials | Discovered new exit (range 16) 677 | -10/Materials | Identified exit to Materials 894 | -10/Materials | Discovered exit to Materials (range 10) 1166 | -10/Materials | Entered Mines 1167 | -10/Mines | Met a Derelict testing a Signal Generator 1189 | -10/Mines | Core integrity fell below 50% 1331 | -10/Mines | Learned Materials emergency access door positions 1383 | -10/Mines | Met a Derelict who couldn't figure out how to use a Trap Extractor 1475 | -10/Mines | Assisted by bots powering up and referring to "LRC-V3" 1608 | -10/Mines | Discovered exit to Materials (range 10) 1702 | -10/Mines | Escorted by a lone wolf Derelict 1724 | -10/Mines | Deemed a non-threat by the Exiles lab entrance 1724 | -10/Mines | Discovered new exit (range 5) 1753 | -10/Mines | Discovered exit to Materials (range 8) 1927 | -10/Mines | Entered Exiles 1927 | -10/Exiles | Accompanied by 5 allies 1943 | -10/Exiles | Discovered new exit (range 14) 1975 | -10/Exiles | Met 8R-AWN 1992 | -10/Exiles | Met EX-HEX 2041 | -10/Exiles | Met EX-DEC 2072 | -10/Exiles | Met EX-BIN 2088 | -10/Exiles | Aligned with FarCom system 2089 | -10/Exiles | Given EX-Vault access code 2116 | -10/Exiles | Opened EX-Vault 2123 | -10/Exiles | Found Cloak of Protection 2146 | -10/Exiles | Warned to stay clear of 0b10 Research branches 2162 | -10/Exiles | Exiles lab attacked by MAIN.C 2222 | -10/Exiles | Discovered new exit (range 12) 2436 | -10/Exiles | Identified exit to Mines 2589 | -10/Exiles | Left Exiles lab with Cloak of Protection 2589 | -10/Exiles | Entered Mines 2589 | -9/Mines | Accompanied by 4 allies 2717 | -9/Mines | Assembled infested the area 2722 | -9/Mines | Assisted by a Guerilla fighting off Assembled 2743 | -9/Mines | Learned location of Zion (-6) 2830 | -9/Mines | Discovered new exit (range 16) 2857 | -9/Mines | Entered Materials 2857 | -8/Materials | Evolved 4 slots: Propulsion x1, Utility x3 3150 | -8/Materials | Build established: Scavenger-Mutant 3640 | -8/Materials | Discovered new exit (range 13) 3739 | -8/Materials | Entered Factory 3739 | -7/Factory | Evolved 2 slots: Propulsion x1, Utility x1 3836 | -7/Factory | Found Powered Armor 3849 | -7/Factory | Lost 4 parts (2n1u1w) 4082 | -7/Factory | Discovered new exit (range 10) 4204 | -7/Factory | Build established: Hacker-Mutant 4458 | -7/Factory | Identified exit to Factory 4503 | -7/Factory | Repaired Lgt. Deuterium Engine 4549 | -7/Factory | Repaired Imp. Light Armor Plating 4646 | -7/Factory | Build established: Hacker-Sprinter 4728 | -7/Factory | Entered another Factory area 4728 | -6/Factory | Evolved 2 slots: Power x1, Propulsion x1 4862 | -6/Factory | Discovered new exit (range 11) 4866 | -6/Factory | Identified exit to Factory 4952 | -6/Factory | Allied Derelicts emerged from ambush trap array 5009 | -6/Factory | Entered another Factory area 5009 | -5/Factory | Evolved 2 slots: Propulsion x1, Utility x1 5027 | -5/Factory | Discovered new exit (range 9) 5037 | -5/Factory | Identified exit to Factory 5041 | -5/Factory | Entered another Factory area 5041 | -4/Factory | Evolved 2 slots: Utility x2 5051 | -4/Factory | Identified exit to DSF 5140 | -4/Factory | Lost 5 parts (2n2u1w) 5155 | -4/Factory | Discovered new exit (range 13) 5170 | -4/Factory | Identified exit to Extension 5170 | -4/Factory | Entered Extension 5192 | -4/Extension | Spotted B-86 Titan 5221 | -4/Extension | Rescued a captive Derelict 5221 | -4/Extension | Rescued a captive Derelict 5333 | -4/Extension | Lost 4 parts (1n2u1w) 5343 | -4/Extension | Rescued a captive Derelict 5344 | -4/Extension | Rescued a captive Derelict 5347 | -4/Extension | Discovered new exit (range 10) 5347 | -4/Extension | Discovered new exit (range 6) 5356 | -4/Extension | Identified exit to Research 5358 | -4/Extension | Identified exit to Cetus 5395 | -4/Extension | Disrupted transfer network 5400 | -4/Extension | Entered Cetus 5404 | -4/Cetus | Spotted Cetus Guard 5404 | -4/Cetus | Spotted Cetus Guard 5405 | -4/Cetus | Spotted Cetus Guard 5410 | -4/Cetus | Discovered exit to Research (range 16) 5417 | -4/Cetus | Build established: Hacker-Scout 5428 | -4/Cetus | Entered Research 5428 | -3/Research | Evolved 2 slots: Power x1, Utility x1 5442 | -3/Research | Found Mni. Smartbomb Launcher 5678 | -3/Research | First assault squad dispatched 5764 | -3/Research | Repaired Imp. Cesium-ion Thruster 5856 | -3/Research | Discovered new exit (range 7) 5869 | -3/Research | Entered Armory 5912 | -3/Armory | Core integrity fell below 50% 5961 | -3/Armory | Core integrity fell below 20% 5963 | -3/Armory | Destroyed by G-73 Enforcer with Phase Gun Last Messages --------------- 05911_ Triggered Gamma Bomb Trap. 05911_ A bubble of electromagnetic force engulfs the area. 05911_ W-44 Eye sends out distress signal. 05916_ D-63 Destroyer springs to life. 05930_ O-32 Director: "IFF HANDSHAKE FAILED. SECURING TERMINAL." [Achievement: Hunted] 05937_ ALERT: Hostiles spotted, dispatching reinforcements to Terminal A008. 05945_ Door malfunctions. 05945_ C-30 ARC bursts open, deploying its payload. 05945_ P-80 Master unfolds itself. 05952_ E-15 Imp destroyed. 05952_ Acquired 20 matter. 05954_ Imp. Shield Generator destroyed. 05958_ Extraspacial Lockers disabled. 05960_ System corrupted: Heat flow error (+133). 05960_ G-67 Veteran IFF system glitched. 05961_ P-80 Master resets G-67 Veteran, system corruption cleaned. 05961_ Critical hit (Burn: +50). 05962_ P-80 Master resets G-67 Veteran, system corruption cleaned. Map ----- +----------------------------------------------------+ | ?????????????????????????????????????????????????? | | ?????????????????????????????????????????????????? | | ?????????????????????????????????????????????????? | | ?????????????????????????????????????????????????? | | ?????????????????????????????????????????????????? | | ?????????????????????????????????????????????????? | | ?????????????????????????????????????????????????? | | ?????????????????????????????????????????????????? | | ?????????????????????????????????????????????????? | | ?????????????????????????????????????????????????? | | ?????????????????????????????????????????????????? | | ?????????????????????????????????????????????????? | | ?????????????????????????????????????????????????? | | ?????????????????????????????????????????????????? | | ?????????????????????????????????????????????????? | | ?????????????????????????????????????????????????? | | ?????????????????????????????????????????????????? | | ????????????????????? ?????????????????????????? | | ???????????????????# ?????????????????????????? | | ???????????????????# ##############???????????? | | ???????????????????# # #???????????? | | ???????????????????# # p l #???????????? | | ???????????????????# # ggggg x/ #???????????? | | ????????Y??????????# # g """ "" #??????????## | | ???????????????????# "% # pgg"""""" #????????## | | ???????????????????# " #@ g """""" #????????# | | ???????????????????# + x #????????# | | ???????????????????# # """""" ########## | | ???????????????????# # l"""""" # | | ???????????????????# # """""" # w # | | ???????????????????# # # ## | | ???????????????????# / x + !! #### | | ???????????????????# ###########/## !! #??? | | ??????????ss???????# # # ! ##### | | ??????????????????## # + | | ???????????s??????+ # === # | | ??????????????????#### # = === ###########"# | | ??????????" ?????????# # == #???????? | | ??????????? ggg?????# # """ #?????? | | ????????????""""?????# # """ #???? | | ??????????? """" #### + """ #??# "" | | ??????????? """" + # """ "" #??# ?? | | ??????????? """" ####### """ T" #??# ?? | | ?????????? ????????# """ "" #??# ?? | | ???????? ??????????# #??# ?? | | ???????## ##????????????###""" """####??# ??? | | ??????????????????????????#"""T"""#?????# ??? | | ??????????????????????????#########?????#######??? | | | | | +----------------------------------------------------+ Best States ------------- Heat Dissipation 46 Energy Generation 31 Energy Capacity 270 Matter Stores 300 Matter Capacity 300 Sight Range 16 Terrain Scan Range 16 Terrain Scan Density 85 Cloak Strength 5 Additional Mass Support 12 Base Temperature (-) 200 Armor Coverage 550 Resistance: KI 25 Resistance: EX 25 Weapon Shielding 66 Evasion (%) 65 Targeting Accuracy 8 Offensive Hacking 10 Defensive Hacking 10 Item Schematics ----------------- None Robot Schematics ------------------ None Fabricated ------------ Nothing Alien Tech Used ----------------- None Achievements -------------- Can't Catch Me Dangerous Findings Hunted I Survived The Infestation It Was An Accident, I Swear Oops Remodeling Respectable Loadout Slippery One The More The Merrier Challenges ------------ None Game ------ Seed RemoteSpliceTendrils Manual? 0 Play Time 05:03:30 Cumulative 19.2 hours Start 2024.04.01 @ 20:19:49 End 2024.04.02 @ 02:40:24 Sessions 3 Manual Loads 0 Difficulty Rogue Special Mode None Game No. 7 Rogue 6 Adventurer 1 Explorer 0 Win Type - Total 0 Types 0/0/0/0/0/0/0/0/0 Lore% 14 Gallery% 17 Achievement% 14 Wizard Run 0 Options --------- Layout 0 ASCII 0 Keyboard 0 Movement Mouse Keybinds 0 Fullscreen 1 Font 18/Smallcaps Map View 76x50 Zoom Use 0% Tactical HUD 1 Map Filters NONE Filters NONE Steam 1 RUN: 8314022b-e034-4430-842e-df85a9553b4a